bitfinex/quotes_SOLUSD_20260211
["timestamp","ask_amount","ask_price","bid_price","bid_amount"]
[1770828652318,13.25082679,78.99,78.978,45.32]
[1770828652714,13.25082679,79.0,78.978,45.32]
[1770828652920,13.25082679,79.0,78.979,12.66159358]
[1770828653118,44.28193676,79.039,78.98,1.12472133]
[1770828653119,13.25082679,79.01,78.98,1.12472133]
[1770828653329,12.75082679,79.0,78.98,1.12472133]
[1770828653633,13.25082679,79.01,78.981,1.12472133]
[1770828653818,13.25082679,79.01,78.983,1.12472133]
[1770828654015,13.25082679,79.01,78.985,1.12472133]
[1770828654217,12.65678593,79.009,78.984,45.32]
[1770828654410,13.25082679,79.0,78.984,1.12472133]
[1770828654834,13.25082679,79.01,78.984,1.12472133]
[1770828655139,13.25082679,79.0,78.984,1.12472133]
[1770828655715,13.25082679,78.99,78.979,45.32]
[1770828655938,13.25082679,79.0,78.979,45.32]
[1770828656634,13.25082679,79.0,78.95,13.25082679]
[1770828656635,13.25082679,78.99,78.959,1.12472133]
[1770828656836,13.25082679,78.97,78.959,13.78940099]
[1770828657039,13.25082679,78.97,78.959,1.12472133]
[1770828657242,13.25082679,78.97,78.947,1.12472133]
[1770828657451,13.25082679,78.96,78.947,1.12472133]
[1770828657623,13.25082679,78.96,78.948,12.66656533]
[1770828658022,13.25082679,78.96,78.946,45.34]
[1770828658225,13.25082679,78.96,78.939,12.66797848]
[1770828658425,13.25082679,78.95,78.939,13.79269981]
[1770828658727,13.25082679,78.95,78.93,45.34]
[1770828658922,13.25082679,78.94,78.929,13.79421108]
[1770828659323,13.25082679,78.94,78.926,45.36]
[1770828659924,13.25082679,78.97,78.928,1.12472133]
[1770828660123,13.25082679,78.96,78.93,1.12472133]
[1770828660325,50.62240111,79.017,78.932,1.12472133]
[1770828660326,13.25082679,78.97,78.932,1.12472133]
[1770828660538,13.25082679,78.97,78.929,44.34365061]
[1770828660539,13.25082679,78.97,78.934,1.12472133]
[1770828660738,38.62,79.004,78.93,1.12472133]
[1770828660951,13.25082679,78.97,78.936,1.12472133]
[1770828661530,13.25082679,78.96,78.936,1.12472133]
[1770828661737,13.25082679,78.98,78.936,1.12472133]
[1770828662126,13.25082679,78.99,78.941,1.12472133]
[1770828662332,13.25082679,78.99,78.943,1.12472133]
[1770828662533,50.59526495,79.059,78.937,95.0124783]
[1770828662534,12.65260513,79.036,78.962,1.12472133]
[1770828662743,13.25082679,79.03,78.981,1.12472133]
[1770828662952,13.25082679,79.02,78.983,1.12472133]
[1770828663330,13.45082679,79.05,79.001,1.12472133]
[1770828663547,13.45082679,79.05,79.029,1.12472133]
[1770828663748,13.45082679,79.05,79.031,1.12472133]
[1770828663945,0.2,79.05,79.031,1.12472133]
[1770828664147,13.25082679,79.06,79.033,1.12472133]
[1770828664653,44.25338222,79.09,79.033,1.12472133]
[1770828664654,13.25082679,79.05,79.033,1.12472133]
[1770828664824,13.25082679,79.05,79.033,46.54472133]
[1770828665024,13.25082679,79.07,79.034,1.12472133]
[1770828665440,13.25082679,79.07,78.958,75.98962478]
[1770828665441,13.25082679,79.05,79.036,1.12472133]
[1770828665750,13.25082679,79.06,79.03,1.12472133]
[1770828666255,13.25082679,79.04,79.025,1.12472133]
[1770828666553,13.25082679,79.06,79.025,1.12472133]
[1770828666730,13.25082679,79.05,79.025,1.12472133]
[1770828666933,13.25082679,79.06,79.025,1.12472133]
[1770828667146,13.25082679,79.05,79.025,1.12472133]
[1770828667353,13.25082679,79.05,79.027,1.12472133]
[1770828667734,13.25082679,79.06,79.027,1.12472133]
[1770828668056,13.25082679,79.06,79.029,1.12472133]
[1770828668481,25.89797262,79.07,79.031,1.12472133]
[1770828668655,13.25082679,79.06,79.031,1.12472133]
[1770828669339,13.25082679,79.06,79.033,1.12472133]
[1770828669753,13.25082679,79.04,79.033,45.4]
[1770828669959,13.25082679,79.06,79.033,45.4]
[1770828670249,13.25082679,79.04,79.022,1.12472133]
[1770828670456,13.25082679,79.05,79.025,1.12472133]
[1770828670953,13.19662229,79.05,79.025,1.12472133]
[1770828671161,13.19662229,79.06,79.025,1.12472133]
[1770828671366,13.19662229,79.06,79.024,12.65438347]
[1770828671367,12.64190538,79.102,79.031,1.12472133]
[1770828671536,13.19662229,79.08,79.041,1.12472133]
[1770828671730,13.19662229,79.08,79.043,1.12472133]
[1770828672137,12.64190538,79.102,79.043,1.12472133]
[1770828672354,38.46,79.104,79.045,1.12472133]
[1770828672659,13.19662229,79.06,79.035,1.12472133]
[1770828672862,13.19662229,79.04,79.025,45.4]
[1770828673270,13.19662229,79.04,79.014,1.12472133]
[1770828673575,13.19662229,79.03,79.014,1.12472133]
[1770828673776,13.19662229,79.04,79.014,1.12472133]
[1770828674449,13.19662229,79.04,79.004,1.12472133]
[1770828674656,13.19662229,79.05,79.011,1.12472133]
[1770828675470,5.36086188,79.105,79.003,44.30209147]
[1770828675471,13.19662229,79.07,79.031,1.12472133]
[1770828675766,13.19662229,79.08,79.033,1.12472133]
[1770828676166,13.19662229,79.08,79.041,1.12472133]
[1770828676364,13.19662229,79.08,79.043,1.12472133]
[1770828676673,13.19662229,79.06,79.043,1.12472133]
[1770828676870,13.19662229,79.05,79.033,1.12472133]
[1770828677075,13.19662229,79.05,79.023,1.12472133]
[1770828678464,13.19662229,79.05,79.024,12.65438347]
[1770828678674,13.19662229,79.04,79.025,1.12472133]
[1770828678991,12.6503814,79.049,79.025,1.12472133]
[1770828679160,31.62346982,79.056,79.022,45.4]
[1770828679161,13.19662229,79.04,79.022,45.4]
[1770828679362,13.19662229,79.03,79.003,1.12472133]
[1770828679577,13.19662229,79.02,79.004,45.42]
[1770828681080,13.19662229,79.01,78.991,13.78436704]
[1770828681573,12.65518419,79.019,78.985,45.42]
[1770828681574,13.19662229,79.0,78.985,45.42]
[1770828681777,13.19662229,79.0,78.982,1.12472133]
[1770828681963,13.19662229,79.01,78.982,1.12472133]
[1770828682777,13.19662229,79.0,78.982,1.12472133]
[1770828682964,13.19662229,79.0,78.984,1.12472133]
[1770828683365,13.19662229,79.01,78.984,1.12472133]
[1770828683568,13.19662229,79.01,78.985,1.12472133]
[1770828683871,13.19662229,79.0,78.985,1.12472133]
[1770828684376,13.19662229,79.0,78.95,13.19662229]
[1770828684377,13.19662229,78.99,78.946,1.12472133]
[1770828684558,13.19662229,78.96,78.932,1.12472133]
[1770828684763,13.19662229,78.96,78.874,50.71354203]
[1770828684764,13.19662229,78.94,78.912,1.12472133]
[1770828684958,13.19662229,78.93,78.912,1.12472133]
[1770828685177,13.19662229,78.92,78.912,1.12472133]
[1770828685372,13.19662229,78.92,78.903,45.46]
[1770828685571,13.19662229,78.91,78.876,31.69498432]
[1770828685772,13.19662229,78.91,78.877,1.12472133]
[1770828686284,227.96641291,78.959,78.891,1.12472133]
[1770828686285,12.66480071,78.959,78.891,1.12472133]
[1770828686479,13.19662229,78.94,78.891,1.12472133]
[1770828686687,13.19662229,78.95,78.902,1.12472133]
[1770828686996,12.66480071,78.959,78.904,1.12472133]
[1770828686997,13.19662229,78.94,78.904,1.12472133]
[1770828687286,13.19662229,78.95,78.904,1.12472133]
[1770828687690,12.66475104,78.96,78.904,1.12472133]
[1770828687691,13.19662229,78.93,78.904,1.12472133]
[1770828687861,13.19662229,78.92,78.904,1.12472133]
[1770828688272,13.19662229,78.93,78.904,1.12472133]
[1770828688560,44.32916989,78.955,78.906,1.12472133]
[1770828688765,13.19662229,78.93,78.906,1.12472133]
[1770828688961,13.19662229,78.93,78.907,12.67314686]
[1770828689179,13.19662229,78.93,78.908,1.12472133]
[1770828689974,13.19662229,78.94,78.908,1.12472133]
[1770828690268,13.19662229,78.93,78.91,1.12472133]
[1770828690475,13.19662229,78.92,78.91,1.12472133]
[1770828690889,12.67121985,78.919,78.888,1.12472133]
[1770828691084,13.19662229,78.9,78.889,45.54]
[1770828691382,13.19662229,78.91,78.888,1.12472133]
[1770828692174,13.19662229,78.92,78.888,1.12472133]
[1770828692389,13.19662229,78.93,78.89,1.12472133]
[1770828692980,13.19662229,78.93,78.892,1.12472133]
[1770828693592,5.36086188,78.985,78.891,44.36500994]
[1770828693593,13.19662229,78.94,78.901,1.12472133]
[1770828693883,13.19662229,78.94,78.903,1.12472133]
[1770828694071,13.19662229,78.93,78.905,1.12472133]
[1770828694585,12.66720713,78.944,78.891,44.36500994]
[1770828694586,13.19662229,78.92,78.894,1.12472133]
[1770828694792,13.19662229,78.92,78.896,1.12472133]
[1770828695093,13.19662229,78.92,78.898,1.12472133]
[1770828695493,13.19662229,78.94,78.898,1.12472133]
[1770828695672,13.19662229,78.94,78.9,1.12472133]
[1770828696195,12.6591893,78.994,78.91,13.19662229]
[1770828696394,13.19662229,78.97,78.931,1.12472133]
[1770828696573,13.19662229,78.98,78.933,1.12472133]
[1770828696773,50.61588086,79.027,78.9,13.19662229]
[1770828696774,12.65710795,79.007,78.95,13.19662229]
[1770828696990,50.59969518,79.052,78.952,1.12472133]
[1770828696991,13.19662229,79.0,78.952,1.12472133]
[1770828697197,145.49411063,79.041,78.954,1.12472133]
[1770828697198,13.19662229,78.99,78.954,1.12472133]
[1770828697791,13.19662229,78.98,78.954,1.12472133]
[1770828698484,113.93848596,78.99,78.913,1.12472133]
[1770828698676,13.19662229,78.94,78.915,1.12472133]
[1770828699278,13.19662229,78.95,78.917,1.12472133]
[1770828699473,13.19662229,78.94,78.917,1.12472133]
[1770828699669,13.19662229,78.98,78.931,1.12472133]
[1770828701182,13.19662229,78.96,78.933,1.12472133]
[1770828701372,13.19662229,78.96,78.928,45.6]
[1770828701577,13.19662229,78.96,78.928,46.72472133]
[1770828701772,13.19662229,78.97,78.931,1.12472133]
[1770828701995,13.19662229,78.98,78.941,1.12472133]
[1770828703475,13.19662229,78.96,78.932,45.58]
[1770828703979,55.99679695,78.996,78.919,1.12472133]
[1770828704309,13.19662229,78.95,78.919,1.12472133]
[1770828705080,13.19662229,78.94,78.919,1.12472133]
[1770828705275,13.19662229,78.94,78.915,35.34]
[1770828705477,12.66961446,78.929,78.89,12.6758778]
[1770828705779,13.19662229,78.92,78.891,1.12472133]
[1770828706906,13.19662229,78.9,78.873,12.67860991]
[1770828707080,13.19662229,78.88,78.87,0.1]
[1770828707404,13.19662229,78.89,78.87,0.1]
[1770828708175,13.19662229,78.89,78.87,1.22472133]
[1770828708478,25.86940879,78.91,78.87,1.22472133]
[1770828708874,13.19662229,78.91,78.87,1.22472133]
[1770828709078,38.1,78.926,78.871,1.12472133]
[1770828709079,12.67126275,78.919,78.871,1.12472133]
[1770828709286,13.19662229,78.93,78.881,1.12472133]
[1770828709484,13.19662229,78.92,78.881,1.12472133]
[1770828709895,13.19662229,78.92,78.883,1.12472133]
[1770828710291,12.67014147,78.926,78.872,1.12472133]
[1770828710292,13.19662229,78.9,78.872,1.12472133]
[1770828710494,13.19662229,78.91,78.873,1.12472133]
[1770828710795,44.34538156,78.926,78.873,1.12472133]
[1770828710796,13.19662229,78.9,78.873,1.12472133]
[1770828711100,13.19662229,78.91,78.873,1.12472133]
[1770828711610,13.19662229,78.9,78.873,1.12472133]
[1770828712495,13.19662229,78.9,78.875,1.12472133]
[1770828713702,13.19662229,78.91,78.875,1.12472133]
[1770828713891,13.19662229,78.9,78.875,1.12472133]
[1770828714086,13.19662229,78.9,78.87,12.77901664]
[1770828714087,13.19662229,78.89,78.87,0.1]
[1770828716801,12.67486598,78.897,78.87,0.1]
[1770828717109,13.19662229,78.91,78.871,1.12472133]
[1770828717488,12.67128983,78.919,78.881,1.12472133]
[1770828717686,13.19662229,78.91,78.881,1.12472133]
[1770828717905,13.19662229,78.91,78.882,12.67716335]
[1770828718109,13.19662229,78.91,78.882,13.80188468]
[1770828718296,13.19662229,78.91,78.883,1.12472133]
[1770828718687,44.34926949,78.919,78.878,45.64]
[1770828718886,13.19662229,78.9,78.871,12.67893141]
[1770828719099,13.19662229,78.89,78.87,0.1]
[1770828719300,13.19662229,78.88,78.87,0.1]
[1770828719604,38.04,78.9,78.853,12.68182567]
[1770828719906,13.19662229,78.88,78.853,13.806547]
[1770828720112,13.19662229,78.86,78.818,1.12472133]
[1770828720404,228.13977361,78.899,78.8,0.1]
[1770828720405,13.19662229,78.85,78.805,12.68946051]
[1770828720613,13.19662229,78.83,78.8,0.1]
[1770828720915,13.19662229,78.83,78.802,1.12472133]
[1770828721287,13.19662229,78.84,78.802,1.12472133]
[1770828721703,13.19662229,78.85,78.802,1.12472133]
[1770828721909,13.19662229,78.85,78.811,1.12472133]
[1770828722086,13.19662229,78.85,78.813,1.12472133]
[1770828722289,13.19662229,78.85,78.814,1.12472133]
[1770828723803,13.19662229,78.87,78.831,1.12472133]
[1770828724001,13.19662229,78.86,78.835,1.12472133]
[1770828724394,13.19662229,78.87,78.835,1.12472133]
[1770828724594,13.19662229,78.86,78.835,1.12472133]
[1770828724794,13.19662229,78.86,78.834,12.68488215]
[1770828724795,50.67894029,78.929,78.836,1.12472133]
[1770828725007,13.19662229,78.89,78.851,1.12472133]
[1770828725205,13.19662229,78.88,78.851,1.12472133]
[1770828725513,31.67443746,78.928,78.851,1.12472133]
[1770828725724,13.19662229,78.91,78.881,1.12472133]
[1770828726015,12.67121985,78.919,78.883,1.12472133]
[1770828726215,13.19662229,78.9,78.872,1.12472133]
[1770828726411,13.19662229,78.91,78.873,1.12472133]
[1770828726616,12.67121985,78.919,78.881,1.12472133]
[1770828727110,13.19662229,78.9,78.881,1.12472133]
[1770828727303,13.19662229,78.9,78.872,12.67874769]
[1770828727504,13.19662229,78.9,78.872,13.80346902]
[1770828727809,44.34926949,78.919,78.873,1.12472133]
[1770828728012,13.19662229,78.93,78.881,1.12472133]
[1770828728205,13.19662229,78.92,78.883,1.12472133]
[1770828728404,13.19662229,78.91,78.883,1.12472133]
[1770828728599,13.19662229,78.92,78.883,1.12472133]
[1770828729117,13.19662229,78.91,78.883,1.12472133]
[1770828730001,13.19662229,78.91,78.884,12.67684194]
[1770828730208,12.67282565,78.909,78.883,1.12472133]
[1770828730509,13.19662229,78.91,78.883,12.6769952]
[1770828730714,13.19662229,78.91,78.884,1.12472133]
[1770828730895,13.24357302,78.91,78.884,1.12472133]
[1770828731099,88.6276794,78.946,78.884,1.12472133]
[1770828731100,13.24357302,78.92,78.884,1.12472133]
[1770828731292,13.24357302,78.91,78.884,1.12472133]
[1770828732117,12.67158107,78.917,78.886,1.12472133]
[1770828732498,13.24357302,78.91,78.886,1.12472133]
[1770828733010,13.24357302,78.92,78.886,1.12472133]
[1770828733198,37.96,78.946,78.886,1.12472133]
[1770828733199,13.24357302,78.91,78.886,1.12472133]
[1770828733397,13.24357302,78.92,78.886,1.12472133]
[1770828734216,13.24357302,78.93,78.888,1.12472133]
[1770828734408,12.6684803,78.937,78.901,1.12472133]
[1770828734611,13.24357302,78.93,78.901,1.12472133]
[1770828735619,13.24357302,78.92,78.891,1.12472133]
[1770828736723,13.24357302,78.92,78.893,1.12472133]
[1770828736929,12.67121985,78.919,78.893,1.12472133]
[1770828737711,13.24357302,78.93,78.893,1.12472133]
[1770828737918,13.24357302,78.92,78.893,1.12472133]
[1770828739028,12.67121985,78.919,78.893,1.12472133]
[1770828739317,12.67121985,78.919,78.894,12.67523512]
[1770828739521,12.6705785,78.923,78.895,1.12472133]
[1770828739718,13.24357302,78.92,78.895,1.12472133]
[1770828740109,12.66608402,78.951,78.911,0.69784995]
[1770828740310,12.66608402,78.951,78.91,13.24357302]
[1770828740512,12.66464032,78.96,78.92,13.24357302]
[1770828740706,12.66464032,78.96,78.909,45.7]
[1770828741026,25.90821334,78.96,78.921,12.67089874]
[1770828741322,0.6147795,78.949,78.921,12.67089874]
[1770828741523,0.6147795,78.929,78.865,31.69974006]
[1770828741727,108.22837544,78.96,78.865,44.37963608]
[1770828741728,13.24357302,78.9,78.865,44.37963608]
[1770828742421,13.24357302,78.9,78.866,0.63906153]
[1770828742930,13.24357302,78.89,78.864,45.68]
[1770828743131,0.6147795,78.899,78.865,12.67989602]
[1770828743321,13.24357302,78.9,78.866,0.63906153]
[1770828743816,0.6147795,78.932,78.891,0.63906153]
[1770828744008,12.66911329,78.933,78.893,0.63906153]
[1770828744427,13.24357302,78.95,78.901,0.63906153]
[1770828744627,0.6147795,78.949,78.911,0.63906153]
[1770828744930,0.6147795,78.939,78.912,45.7]
[1770828745141,13.24357302,78.93,78.912,45.7]
[1770828745448,13.24357302,78.93,78.904,12.67358498]
[1770828746532,13.24357302,78.93,78.9,12.67416574]
[1770828747205,13.24357302,78.92,78.891,77.4089128]
[1770828747416,12.66977498,78.928,78.892,0.63480537]
[1770828747609,0.64814041,78.927,78.892,0.63480537]
[1770828747809,13.89171343,78.92,78.886,12.67652054]
[1770828748030,13.89171343,78.92,78.887,0.63480537]
[1770828748342,13.24357302,78.92,78.887,0.63480537]
[1770828748525,13.89171343,78.96,78.911,0.63480537]
[1770828748827,13.31294112,78.959,78.913,0.63480537]
[1770828749035,13.24357302,78.95,78.913,0.63480537]
[1770828749215,13.24357302,78.95,78.915,0.63480537]
[1770828749410,12.66640489,78.949,78.915,0.63480537]
[1770828749928,12.66583021,78.953,78.915,0.63480537]
[1770828750306,13.89171343,78.94,78.909,12.67269028]
[1770828750521,13.89171343,78.94,78.909,13.30749565]
[1770828750725,0.64814041,78.949,78.91,0.63480537]
[1770828751636,12.66656533,78.948,78.912,0.63480537]
[1770828752238,12.66656533,78.948,78.913,0.63480537]
[1770828752534,37.86,78.955,78.913,0.63480537]
[1770828752736,13.24357302,78.96,78.921,0.63480537]
[1770828752934,12.6633573,78.968,78.921,0.63480537]
[1770828753135,12.6633573,78.968,78.931,0.63480537]
[1770828753530,13.24357302,78.97,78.933,0.63480537]
[1770828753739,13.24357302,78.98,78.941,0.63480537]
[1770828754036,63.2821488,79.012,78.932,44.34196523]
[1770828754037,12.65838808,78.999,78.961,0.63480537]
[1770828754236,12.65838808,78.999,78.963,0.63480537]
[1770828754436,12.65838808,78.999,78.962,45.76]
[1770828754437,13.24357302,78.99,78.962,45.76]
[1770828754741,13.24357302,78.99,78.957,45.76]
[1770828754942,13.24357302,78.99,78.957,46.39480537]
[1770828755541,13.24357302,78.98,78.957,45.76]
[1770828755741,13.30813104,78.989,78.937,0.63480537]
[1770828755742,13.24357302,78.97,78.937,0.63480537]
[1770828755931,13.24357302,78.97,78.941,12.66758132]
[1770828756331,13.24357302,78.96,78.937,0.63480537]
[1770828756525,13.24357302,78.96,78.937,13.30299019]
[1770828756721,13.24357302,78.96,78.936,45.74]
[1770828757334,13.24357302,78.95,78.927,13.30467144]
[1770828757529,13.24357302,78.94,78.922,45.76]
[1770828757736,13.24357302,78.95,78.923,12.67057765]
[1770828758246,13.24357302,78.97,78.931,0.63480537]
[1770828758848,12.6621736,78.976,78.931,0.63480537]
[1770828759353,13.24357302,78.98,78.941,0.63480537]
[1770828759540,12.65999063,78.989,78.953,0.63480537]
[1770828760544,13.44357302,79.0,78.961,0.63480537]
[1770828760743,13.44357302,79.0,78.963,0.63480537]
[1770828760744,0.2,79.0,78.963,0.63480537]
[1770828761122,13.24357302,78.99,78.963,0.63480537]
[1770828761444,26.10190812,79.0,78.963,0.63480537]
[1770828761737,26.10190812,79.0,78.965,0.63480537]
[1770828761953,0.2,79.0,78.965,0.63480537]
[1770828762143,12.65838808,78.999,78.965,0.63480537]
[1770828762326,13.24357302,78.99,78.965,0.63480537]
[1770828762525,13.24357302,78.99,78.966,45.8]
[1770828763641,13.24357302,78.99,78.965,0.63480537]
[1770828763846,12.65999063,78.989,78.965,0.63480537]
[1770828765344,12.65999063,78.989,78.965,12.66374135]
[1770828765553,12.65870855,78.997,78.966,0.63480537]
[1770828765756,12.65870855,78.997,78.967,12.66351767]
[1770828766074,12.65870855,78.997,78.968,0.63480537]
[1770828766254,0.2,79.0,78.971,0.63480537]
[1770828766430,13.44357302,79.0,78.971,0.63480537]
[1770828767030,0.2,79.0,78.971,0.63480537]
[1770828767954,0.2,79.0,78.973,0.63480537]
[1770828768940,4.59956505,79.034,78.982,0.63480537]
[1770828769140,12.65294244,79.033,78.991,0.63480537]
[1770828769654,12.65294244,79.033,79.001,0.63480537]
[1770828769949,3.95142464,79.034,79.011,0.63480537]
[1770828770142,3.95142464,79.034,79.013,0.63480537]
[1770828770338,0.2,79.06,79.021,0.58666427]
[1770828770664,12.64878128,79.059,79.023,0.58666427]
[1770828770957,12.64878128,79.059,79.004,44.30155434]
[1770828770958,12.64508458,79.083,79.051,0.58666427]
[1770828771172,0.59128359,79.114,79.061,0.58666427]
[1770828771452,13.24357302,79.09,79.061,0.58666427]
[1770828771633,13.24357302,79.09,79.062,0.58666427]
[1770828771835,13.24357302,79.1,79.062,0.58666427]
[1770828772035,13.24357302,79.1,79.064,0.58666427]
[1770828772252,12.64238485,79.099,79.064,0.58666427]
[1770828773038,13.24357302,79.08,79.042,0.58666427]
[1770828773373,0.59128359,79.089,79.045,0.58666427]
[1770828773542,12.64238485,79.099,79.061,0.58666427]
[1770828773741,12.64238485,79.099,79.063,0.58666427]
[1770828773939,0.59128359,79.098,79.065,0.58666427]
[1770828774139,0.59128359,79.098,79.062,45.84]
[1770828774140,13.24357302,79.09,79.058,45.84]
[1770828774462,12.64238485,79.099,79.059,0.58666427]
[1770828774765,13.24357302,79.09,79.059,0.58666427]
[1770828774967,13.24357302,79.09,79.059,46.42666427]
[1770828775163,0.59128359,79.098,79.06,0.58666427]
[1770828775455,12.64238485,79.099,79.061,0.58666427]
[1770828775749,13.24357302,79.09,79.061,0.58666427]
[1770828776052,37.8,79.11,79.059,45.84]
[1770828776053,12.64270452,79.097,79.063,0.58666427]
[1770828776540,13.24357302,79.09,79.063,0.58666427]
[1770828777050,12.64238485,79.099,79.063,0.58666427]
[1770828777848,51.04357302,79.11,79.063,0.58666427]
[1770828778144,12.6414088,79.106,79.065,0.58666427]
[1770828778349,12.6414088,79.106,79.067,0.58666427]
[1770828778654,25.88424579,79.11,79.067,0.58666427]
[1770828778955,13.24357302,79.1,79.067,0.58666427]
[1770828779151,12.63918906,79.119,79.071,0.58666427]
[1770828779360,0.59128359,79.128,79.081,0.58666427]
[1770828779537,13.24357302,79.12,79.083,0.58666427]
[1770828779738,0.59128359,79.119,79.083,0.58666427]
[1770828779962,44.23157123,79.129,79.026,50.61615629]
[1770828779963,13.24357302,79.09,79.062,0.58666427]
[1770828780258,13.24357302,79.08,79.054,12.64946283]
[1770828780460,13.23526695,79.089,79.054,13.2361271]
[1770828780756,13.24357302,79.08,79.055,0.58666427]
[1770828780942,12.64398336,79.089,79.055,0.58666427]
[1770828781140,13.24357302,79.07,79.042,0.58666427]
[1770828781341,0.59128359,79.059,79.011,0.58666427]
[1770828781853,0.59128359,79.059,79.008,45.82]
[1770828781854,13.24357302,79.06,79.021,0.58666427]
[1770828782058,13.24357302,79.05,79.023,0.58666427]
[1770828782352,31.6179413,79.07,79.022,12.65470375]
[1770828782353,0.59128359,79.085,79.041,0.58666427]
[1770828782555,13.24357302,79.09,79.051,0.58666427]
[1770828783340,13.24357302,79.09,79.053,0.58666427]
[1770828783937,12.64334391,79.093,79.022,158.1837969]
[1770828783938,13.24357302,79.07,79.042,0.58666427]
[1770828784158,12.64730275,79.069,79.025,0.58666427]
[1770828784347,12.64730275,79.069,79.024,44.29034216]
[1770828784661,13.24357302,79.09,79.041,0.58666427]
[1770828784839,13.24357302,79.09,79.025,45.8]
[1770828784840,13.24357302,79.09,79.051,0.58666427]
[1770828785040,13.24357302,79.09,79.052,0.58666427]
[1770828785459,12.64340459,79.093,79.052,0.58666427]
[1770828785762,12.64340459,79.093,79.054,0.58666427]
[1770828785963,12.64340459,79.093,79.024,208.79732737]
[1770828785964,12.64340459,79.093,79.056,0.58666427]
[1770828786361,37.8,79.11,79.055,45.78]
[1770828786362,0.59128359,79.089,79.057,12.64910128]
[1770828786559,13.24357302,79.09,79.058,0.58666427]
[1770828787460,13.24357302,79.08,79.052,12.64988213]
[1770828787961,13.24357302,79.08,79.053,0.58666427]
[1770828789169,0.59128359,79.069,79.039,45.78]
[1770828789542,0.59128359,79.069,79.037,12.65215376]
[1770828789739,0.59128359,79.069,79.037,13.23881803]
[1770828789959,13.24357302,79.06,79.03,45.8]
[1770828790158,13.24357302,79.04,79.015,0.58666427]
[1770828790357,13.24357302,79.05,79.015,0.58666427]
[1770828790567,13.24357302,79.04,79.015,0.58666427]
[1770828790767,0.59128359,79.049,78.978,158.27192381]
[1770828790768,13.24357302,79.03,79.003,0.58666427]
[1770828791156,12.65358286,79.029,79.003,0.58666427]
[1770828792176,44.28754001,79.029,79.003,0.58666427]
[1770828792374,0.59128359,79.057,79.004,0.58666427]
[1770828792572,2.47215037,101.77,78.988,45.8]
[1770828792573,13.24357302,79.1,79.051,0.58666427]
[1770828792781,13.24357302,79.11,79.07,13.24357302]
[1770828792956,0.2,79.13,79.081,0.58666427]
[1770828792957,13.17407754,79.12,79.081,0.58666427]
[1770828793158,13.17407754,79.11,79.081,0.58666427]
[1770828793351,12.64078676,79.109,79.081,0.58666427]
[1770828793781,13.17407754,79.09,79.04,13.17407754]
[1770828794079,13.17407754,79.09,79.051,0.58666427]
[1770828794273,13.17407754,79.09,79.053,0.58666427]
[1770828794955,0.15513773,79.098,79.053,0.58666427]
[1770828795252,13.17407754,79.1,79.055,0.58666427]
[1770828795453,12.64030741,79.112,79.061,0.58666427]
[1770828795653,13.17407754,79.11,79.061,0.58666427]
[1770828796054,13.17407754,79.1,79.061,0.58666427]
[1770828796258,13.17407754,79.11,79.061,0.58666427]
[1770828796670,13.17407754,79.1,79.061,0.58666427]
[1770828796874,13.17407754,79.09,79.061,0.58666427]
[1770828797075,13.17407754,79.1,79.061,0.58666427]
[1770828797581,13.17407754,79.1,79.054,12.64958129]
[1770828797582,12.64238485,79.099,79.063,0.58666427]
[1770828797759,13.17407754,79.12,79.071,0.58666427]
[1770828797955,81.99157123,79.129,79.072,0.58666427]
[1770828798155,13.17407754,79.11,79.072,0.58666427]
[1770828798550,13.17407754,79.1,79.072,0.58666427]
[1770828799075,13.17407754,79.11,79.072,0.58666427]
[1770828799256,13.17407754,79.1,79.072,0.58666427]
[1770828799456,12.64238485,79.099,79.072,0.58666427]
[1770828799675,12.64238485,79.099,79.061,0.58666427]
[1770828799676,13.17407754,79.09,79.061,0.58666427]
[1770828800080,13.17407754,79.09,79.058,12.64889663]
[1770828800375,0.14541156,79.095,79.052,45.76]
[1770828800579,0.14541156,79.095,79.017,50.62198313]
[1770828800580,13.17407754,79.07,79.041,0.55190583]
[1770828800777,13.17407754,79.07,79.042,0.55190583]
[1770828801672,25.81962392,79.08,79.044,0.55190583]
[1770828801866,12.64474707,79.085,79.044,0.55190583]
[1770828802067,13.17407754,79.06,79.031,0.55190583]
[1770828802260,13.17407754,79.06,79.021,0.55190583]
[1770828802261,13.17407754,79.04,79.021,0.55190583]
[1770828802463,0.13983988,79.06,79.022,12.65470375]
[1770828802677,13.31391742,79.06,79.023,0.55190583]
[1770828802876,13.17407754,79.04,79.013,0.55190583]
[1770828803075,0.13802516,79.051,79.013,0.55190583]
[1770828803273,13.17407754,79.04,79.014,0.55190583]
[1770828803983,13.17407754,79.04,79.0,13.17407754]
[1770828803984,13.17407754,79.03,78.999,0.55190583]
[1770828804776,12.6514202,79.043,79.001,0.55190583]
[1770828805080,13.17407754,79.03,79.001,0.55190583]
[1770828805581,13.17407754,79.04,79.001,0.55190583]
[1770828806089,13.17407754,79.02,78.989,0.55190583]
[1770828806265,13.17407754,79.03,78.989,0.55190583]
[1770828806780,12.65198193,79.039,79.001,0.56690402]